bitfinex-derivatives/quotes_SOLF0:USTF0_20250307
["timestamp","ask_amount","ask_price","bid_price","bid_amount"]
[1741324122667,0.0511349,141.6,141.57,2.229e-05]
[1741324123562,7.063,141.58,141.57,2.229e-05]
[1741324125255,10.603,141.58,141.57,2.229e-05]
[1741324125866,12.583,141.58,141.57,2.229e-05]
[1741324126162,7.0664,141.51,141.5,9.65128923]
[1741324127970,7.0669,141.5,141.49,0.05136919]
[1741324128469,0.04649279,141.52,141.49,0.05136919]
[1741324128673,7.0668,141.51,141.49,0.05136919]
[1741324130264,0.04649279,141.52,141.49,0.05136919]
[1741324131272,7.0664,141.51,141.49,0.05136919]
[1741324131570,0.04649279,141.52,141.49,0.05136919]
[1741324131974,7.0669,141.5,141.49,0.05136919]
[1741324137373,0.04649279,141.52,141.49,0.05136919]
[1741324137675,7.0669,141.5,141.49,0.05136919]
[1741324137878,0.04649279,141.52,141.49,0.05136919]
[1741324138072,7.0668,141.51,141.49,0.05136919]
[1741324138277,0.04649279,141.52,141.49,0.05136919]
[1741324138678,7.0668,141.51,141.49,0.05136919]
[1741324139777,7.0669,141.5,141.49,0.05136919]
[1741324142278,7.0669,141.5,141.49,6.919e-05]
[1741324142279,33.9869,141.5,141.49,6.919e-05]
[1741324150579,7.0666,141.51,141.49,6.919e-05]
[1741324150777,0.04649279,141.52,141.49,6.919e-05]
[1741324151189,7.0669,141.5,141.49,6.919e-05]
[1741324154185,0.04649279,141.52,141.5,7.0669]
[1741324154982,0.04649279,141.52,141.49,7.06726919]
[1741324155185,0.04649279,141.52,141.5,45.70277054]
[1741324155785,0.04649279,141.52,141.51,7.0664]
[1741324156288,7.0633,141.58,141.53,7.0651]
[1741324156588,26.8,141.61,141.53,25.94787054]
[1741324156888,7.0643,141.56,141.53,18.88277054]
[1741324157385,7.1110022,141.56,141.53,0.04866042]
[1741324158084,0.0467022,141.56,141.53,0.04866042]
[1741324158282,7.0645,141.55,141.53,0.04866042]
[1741324158479,0.0467022,141.56,141.53,0.04866042]
[1741324159489,7.0645,141.55,141.53,0.04866042]
[1741324160180,0.0467022,141.56,141.53,0.04866042]
[1741324160778,7.0649,141.54,141.53,0.04866042]
[1741324163089,7.0646,141.55,141.53,0.04866042]
[1741324163389,7.0649,141.54,141.53,0.04866042]
[1741324166692,26.7867022,141.56,141.53,0.04866042]
[1741324166993,0.0467022,141.56,141.53,0.04866042]
[1741324167489,0.0467022,141.56,141.54,7.0649]
[1741324169393,0.0467022,141.56,141.54,7.0645]
[1741324169597,0.0467022,141.56,141.53,45.65143096]
[1741324170494,0.0467022,141.56,141.53,52.71643096]
[1741324170696,0.0467022,141.56,141.53,45.65143096]
[1741324171196,7.0633,141.58,141.54,6.0094]
[1741324171588,7.0633,141.58,141.54,13.074]
[1741324172294,0.05009802,141.57,141.54,6.0094]
[1741324172491,0.05009802,141.57,141.55,25.94717054]
[1741324174388,0.05009802,141.57,141.55,18.88277054]
[1741324174590,7.0628,141.59,141.55,18.88277054]
[1741324175283,7.0611,141.62,141.57,18.88277054]
[1741324175486,26.72,141.67,141.57,45.60277054]
[1741324175689,0.05154302,141.61,141.59,25.94487054]
[1741324175893,7.0605,141.63,141.59,25.94487054]
[1741324176199,0.04856902,141.61,141.59,18.93482735]
[1741324176398,0.04856902,141.61,141.59,25.99712735]
[1741324176899,0.04856902,141.61,141.59,18.93482735]
[1741324177493,7.061,141.62,141.59,18.93482735]
[1741324178594,7.1124575,141.62,141.59,18.93482735]
[1741324178795,0.0514575,141.62,141.59,25.99732735]
[1741324179493,4.0064575,141.62,141.59,18.93482735]
[1741324179697,18.88277054,141.7,141.59,18.93482735]
[1741324179897,18.88277054,141.7,141.59,18.88277054]
[1741324179898,45.58277054,141.7,141.59,18.88277054]
[1741324180101,7.0608,141.63,141.59,25.94487054]
[1741324180809,0.05019851,141.62,141.6,0.04677444]
[1741324181103,18.88277054,141.68,141.59,45.58277054]
[1741324181406,18.88277054,141.68,141.6,0.05035757]
[1741324181701,7.0618,141.61,141.6,0.05035757]
[1741324182602,0.04524631,141.62,141.6,0.05035757]
[1741324183104,7.10624631,141.62,141.6,0.05035757]
[1741324185005,0.04524631,141.62,141.6,0.05035757]
[1741324186497,0.04524631,141.62,141.61,18.88277054]
[1741324186700,26.7,141.7,141.61,18.88277054]
[1741324186898,22.65057054,141.72,141.63,18.88277054]
[1741324187197,7.0583,141.68,141.64,7.0597]
[1741324187699,0.04532743,141.67,141.65,0.0457168]
[1741324187892,7.10382743,141.67,141.65,0.0457168]
[1741324188100,0.04532743,141.67,141.65,0.0457168]
[1741324188904,0.04532743,141.67,141.65,7.1051168]
[1741324189296,0.04532743,141.67,141.65,0.0457168]
[1741324190404,7.10382743,141.67,141.65,0.0457168]
[1741324192309,7.059,141.66,141.65,0.0457168]
[1741324194004,7.059,141.66,141.65,1.68e-05]
[1741324197912,10.8106,141.66,141.65,1.68e-05]
[1741324202514,33.21337054,141.66,141.65,1.68e-05]
[1741324202914,26.15437054,141.66,141.55,88.07022748]
[1741324203115,22.63437054,141.66,141.55,86.08322748]
[1741324203317,18.88277054,141.64,141.55,86.08322748]
[1741324203517,26.58,141.63,141.55,86.08322748]
[1741324203718,7.064,141.56,141.55,38.60515694]
[1741324203914,26.58,141.63,141.55,38.60515694]
[1741324204120,0.05221892,141.57,141.55,38.60515694]
[1741324204320,0.05244777,141.57,141.55,45.66925694]
[1741324204517,0.05244777,141.57,141.55,45.71989017]
[1741324204820,0.05244777,141.57,141.55,0.05063323]
[1741324205026,7.064,141.56,141.55,0.05063323]
[1741324207328,0.05244777,141.57,141.55,0.05063323]
[1741324208425,7.064,141.56,141.55,0.05063323]
[1741324208628,0.05244777,141.57,141.55,0.05063323]
[1741324210630,7.064,141.56,141.55,0.05063323]
[1741324214537,7.064,141.56,141.55,12.12011642]
[1741324215029,0.05244777,141.57,141.55,12.12011642]
[1741324216936,7.064,141.56,141.55,12.12011642]
[1741324219733,0.05244777,141.57,141.55,12.12011642]
[1741324220529,7.064,141.56,141.55,0.05063323]
[1741324221534,0.05244777,141.57,141.55,12.12011642]
[1741324222431,7.11604777,141.57,141.55,12.12011642]
[1741324223028,0.05244777,141.57,141.55,12.12011642]
[1741324224641,7.11624777,141.57,141.55,12.12011642]
[1741324225443,0.05244777,141.57,141.55,12.12011642]
[1741324226637,7.0613,141.62,141.56,27.0]
[1741324226837,27.0,141.65,141.59,12.06948319]
[1741324227044,12.06948319,141.64,141.57,12.06948319]
[1741324227744,0.05268559,141.62,141.59,0.05197928]
[1741324228244,0.05268559,141.62,141.59,12.12146247]
[1741324228540,0.05268559,141.62,141.61,12.06948319]
[1741324231048,0.05268559,141.62,141.59,0.05197928]
[1741324231249,12.06948319,141.61,141.59,0.05197928]
[1741324231452,7.062,141.6,141.59,0.05197928]
[1741324231942,7.064,141.56,141.55,38.60515694]
[1741324232350,7.064,141.56,141.55,115.81547086]
[1741324233050,7.064,141.56,141.55,17.84917086]
[1741324233250,7.064,141.56,141.55,5.58027086]
[1741324233450,7.064,141.56,141.55,7.086e-05]
[1741324235345,7.0645,141.55,141.54,0.0475948]
[1741324239755,7.0645,141.55,141.54,9.48e-05]
[1741324251269,7.0679,141.48,141.47,3.9298]
[1741324252860,7.0684,141.47,141.46,0.04820598]
[1741324253371,26.84598269,141.49,141.46,0.04820598]
[1741324253372,33.91358269,141.49,141.46,0.04820598]
[1741324253571,7.11358269,141.49,141.46,0.04820598]
[1741324254266,0.04598269,141.49,141.47,12.0850258]
[1741324254468,7.0668,141.51,141.48,2.0659]
[1741324254667,26.8,141.52,141.48,2.0659]
[1741324255069,33.8663,141.52,141.49,12.0850258]
[1741324255266,38.9050258,141.55,141.49,12.0850258]
[1741324255666,7.066,141.52,141.51,0.05313395]
[1741324257673,0.04933601,141.53,141.51,12.13815975]
[1741324258165,0.04933601,141.53,141.51,19.20415975]
[1741324258366,0.04933601,141.53,141.51,12.13815975]
[1741324258570,0.04933601,141.53,141.51,0.05313395]
[1741324258767,7.0644,141.56,141.52,7.0656]
[1741324258964,259.96,141.58,141.51,0.05313395]
[1741324259170,26.86,141.61,141.52,18.86610795]
[1741324259471,26.86,141.61,141.55,7.0644]
[1741324259670,7.063,141.58,141.53,26.86]
[1741324259973,7.063,141.58,141.57,0.05343956]
[1741324260174,7.063,141.58,141.56,0.05017085]
[1741324260570,7.0635,141.57,141.56,0.05017085]
[1741324261474,7.0631,141.58,141.56,0.05017085]
[1741324262477,0.04719064,141.59,141.56,0.05017085]
[1741324263969,7.0635,141.57,141.56,0.05017085]
[1741324264676,52.76960795,141.57,141.56,7.085e-05]
[1741324270779,56.30960795,141.57,141.56,7.085e-05]
[1741324272781,7.0693,141.46,141.44,2.0598]
[1741324272978,26.78,141.51,141.44,2.0598]
[1741324273685,7.0688,141.47,141.44,2.0598]
[1741324273874,7.0688,141.47,141.46,0.04694703]
[1741324274988,33.8488,141.47,141.46,0.04694703]
[1741324276881,33.8488,141.47,141.46,4.703e-05]
[1741324281192,45.64610795,141.47,141.34,3.9652]
[1741324281394,18.86610795,141.42,141.34,5.9011]
[1741324281694,7.0729,141.39,141.34,5.9011]
[1741324282193,18.86610795,141.42,141.34,5.9011]
[1741324282392,0.04796705,141.38,141.35,0.05166893]
[1741324282894,7.0739,141.36,141.35,0.05166893]
[1741324283796,0.04796705,141.38,141.35,0.05166893]
[1741324284387,7.0734,141.37,141.35,0.05166893]
[1741324284592,0.04796705,141.38,141.35,0.05166893]
[1741324284897,7.0735,141.37,141.35,0.05166893]
[1741324285087,0.04796705,141.38,141.35,0.05166893]
[1741324285604,7.0738,141.37,141.35,0.05166893]
[1741324286902,0.04796705,141.38,141.35,0.05166893]
[1741324287103,7.12096705,141.38,141.35,0.05166893]
[1741324289399,0.04796705,141.38,141.35,0.05166893]
[1741324291607,0.04796705,141.38,141.35,7.12566893]
[1741324291802,7.12096705,141.38,141.35,0.05166893]
[1741324292003,0.04796705,141.38,141.35,0.05166893]
[1741324292396,7.0734,141.37,141.35,0.05166893]
[1741324292608,0.04796705,141.38,141.35,0.05166893]
[1741324293406,7.0739,141.36,141.35,0.05166893]
[1741324293606,0.04796705,141.38,141.35,0.05166893]
[1741324294013,7.0739,141.36,141.35,0.05166893]
[1741324294908,7.0736,141.37,141.35,0.05166893]
[1741324295609,7.0739,141.36,141.35,0.05166893]
[1741324298417,33.7539,141.36,141.35,0.05166893]
[1741324302918,33.7539,141.36,141.35,6.893e-05]
[1741324304625,45.86719769,141.36,141.35,6.893e-05]
[1741324308718,7.0739,141.36,141.35,6.893e-05]
[1741324314922,0.04796705,141.38,141.35,6.893e-05]
[1741324315629,7.0734,141.37,141.35,6.893e-05]
[1741324316734,0.04796705,141.38,141.35,6.893e-05]
[1741324317029,7.0739,141.36,141.35,6.893e-05]
[1741324319326,7.0736,141.37,141.35,6.893e-05]
[1741324320026,7.0738,141.37,141.35,6.893e-05]
[1741324321232,7.0739,141.36,141.35,6.893e-05]
[1741324329532,33.4739,141.36,141.35,6.893e-05]
[1741324330538,45.59129029,141.36,141.35,6.893e-05]
[1741324334141,33.4739,141.36,141.35,6.893e-05]
[1741324334333,45.59129029,141.36,141.35,6.893e-05]
[1741324346254,45.43129029,141.36,141.35,6.893e-05]
[1741324348155,38.35739029,141.36,141.27,18.05849029]
[1741324348355,7.0778,141.29,141.27,18.05849029]
[1741324348556,26.24,141.32,141.27,18.05849029]
[1741324349262,7.12697869,141.31,141.28,0.05072004]
[1741324349558,0.05047869,141.31,141.28,0.05072004]
[1741324350560,7.0775,141.29,141.28,0.05072004]
[1741324350861,0.05047869,141.31,141.28,0.05072004]
[1741324351161,7.0774,141.3,141.28,0.05072004]
[1741324351556,0.05047869,141.31,141.28,0.05072004]
[1741324351962,7.0775,141.29,141.28,0.05072004]
[1741324355465,0.05047869,141.31,141.28,0.05072004]
[1741324355666,0.05047869,141.31,141.29,12.11739029]
[1741324356161,7.12717869,141.31,141.29,12.11739029]
[1741324359261,7.0755,141.33,141.3,7.0769]
[1741324360174,7.0752,141.34,141.31,19.19379029]
[1741324360561,7.11976978,141.34,141.31,19.24710501]
[1741324363972,7.11976978,141.34,141.31,12.17070501]
[1741324366471,0.04456978,141.34,141.31,12.17070501]
[1741324368867,7.11986978,141.34,141.31,12.17070501]
[1741324369973,0.04456978,141.34,141.31,12.17070501]
[1741324370174,0.04456978,141.34,141.32,7.0758]
[1741324370369,0.04456978,141.34,141.32,9.0895]
[1741324370578,0.04456978,141.34,141.32,2.0137]
[1741324370971,7.0754,141.33,141.32,2.0137]
[1741324371778,7.11966978,141.34,141.32,2.0137]
[1741324374385,0.04456978,141.34,141.32,2.0137]
[1741324374884,7.11996978,141.34,141.32,2.0137]
[1741324378498,12.16196007,141.34,141.31,0.05331472]
[1741324378788,38.34196007,141.34,141.31,0.05331472]
[1741324379002,7.0759,141.32,141.31,0.05331472]
[1741324379583,19.19329029,141.32,141.31,0.05331472]
[1741324380298,19.19329029,141.32,141.31,1.472e-05]
[1741324383302,7.11966978,141.34,141.31,1.472e-05]
[1741324384699,7.0755,141.33,141.31,1.472e-05]
[1741324385299,7.0755,141.33,141.31,12.11740501]
[1741324385995,7.11966978,141.34,141.31,12.11740501]
[1741324387402,7.0755,141.33,141.31,12.11740501]
[1741324387596,0.04456978,141.34,141.31,12.11740501]
[1741324388406,7.0759,141.32,141.31,1.472e-05]
[1741324392211,0.04456978,141.34,141.31,12.11740501]
[1741324392610,0.04456978,141.34,141.31,1.472e-05]
[1741324393113,0.04456978,141.34,141.31,7.07641472]
[1741324393303,0.04456978,141.34,141.31,12.11740501]
[1741324393814,0.04456978,141.34,141.31,1.472e-05]
[1741324394513,7.0757,141.33,141.31,1.472e-05]
[1741324395710,7.0759,141.32,141.31,1.472e-05]
[1741324400712,7.0756,141.33,141.31,1.472e-05]
[1741324401912,7.11976978,141.34,141.31,1.472e-05]
[1741324402115,7.11976978,141.34,141.31,12.11740501]
[1741324402316,0.04456978,141.34,141.31,12.11740501]
[1741324402713,7.0757,141.33,141.31,12.11740501]
[1741324403319,7.0757,141.33,141.31,1.472e-05]
[1741324404217,0.04456978,141.34,141.31,12.11740501]
[1741324405216,7.0759,141.32,141.31,12.11740501]
[1741324405712,0.04456978,141.34,141.31,12.11740501]
[1741324405918,7.0756,141.33,141.31,12.11740501]
[1741324406418,7.11976978,141.34,141.31,12.11740501]
[1741324406918,0.04456978,141.34,141.31,12.11740501]
[1741324407624,7.11986978,141.34,141.31,12.11740501]
[1741324409416,7.11986978,141.34,141.31,19.19380501]
[1741324409920,0.04456978,141.34,141.31,19.19380501]
[1741324410419,0.04456978,141.34,141.33,7.0754]
[1741324410819,0.04456978,141.34,141.31,12.11740501]
[1741324411021,0.04456978,141.34,141.32,7.0759]
[1741324412023,7.0757,141.33,141.31,1.472e-05]
[1741324414926,0.04456978,141.34,141.31,1.472e-05]
[1741324415528,7.0759,141.32,141.31,1.472e-05]
[1741324416828,7.0756,141.33,141.31,1.472e-05]
[1741324419123,0.04456978,141.34,141.31,1.472e-05]
[1741324419431,0.04456978,141.34,141.31,12.11740501]
[1741324419924,0.04456978,141.34,141.31,19.19370501]
[1741324420430,7.11996978,141.34,141.31,12.11740501]
[1741324420630,0.04456978,141.34,141.31,12.11740501]
[1741324421130,7.0758,141.33,141.31,12.11740501]
[1741324421328,0.04456978,141.34,141.31,1.472e-05]
[1741324421734,7.0754,141.33,141.31,1.472e-05]
[1741324422236,0.04456978,141.34,141.31,19.19350501]
[1741324422543,0.04456978,141.34,141.31,12.11740501]
[1741324423730,7.11976978,141.34,141.31,12.11740501]
[1741324424335,0.04456978,141.34,141.31,12.11740501]
[1741324424643,7.0756,141.33,141.31,12.11740501]
[1741324425436,15.00634745,141.42,141.32,26.18]
[1741324425732,15.00634745,141.42,141.38,12.11739029]
[1741324425927,15.00634745,141.42,141.39,26.16]
[1741324426127,117.34382022,141.45,141.39,26.16]
[1741324426722,0.05303132,141.43,141.4,0.04736875]
[1741324427836,0.05303132,141.43,141.4,12.16475904]
[1741324428935,0.05303132,141.43,141.4,19.23665904]
[1741324431531,0.05303132,141.43,141.41,7.0714]
[1741324433541,0.05303132,141.43,141.4,12.16475904]
[1741324433739,0.05303132,141.43,141.42,7.0709]
[1741324434536,0.05303132,141.43,141.4,12.16475904]
[1741324434737,0.05303132,141.43,141.4,0.04736875]
[1741324435240,7.071,141.42,141.4,0.04736875]
[1741324435449,12.17042161,141.43,141.4,0.04736875]
[1741324435837,7.0709,141.42,141.4,0.04736875]
[1741324436542,9.04613132,141.43,141.4,0.04736875]
[1741324439242,1.97563132,141.43,141.4,0.04736875]
[1741324439547,7.071,141.42,141.4,0.04736875]
[1741324442137,1.97563132,141.43,141.4,0.04736875]
[1741324442138,7.0714,141.41,141.4,0.04736875]
[1741324444046,1.97563132,141.43,141.4,0.04736875]
[1741324444246,9.04653132,141.43,141.4,0.04736875]
[1741324444445,1.97563132,141.43,141.4,0.04736875]
[1741324444747,1.97563132,141.43,141.42,12.11739029]
[1741324444748,0.05303132,141.43,141.42,12.11739029]
[1741324445050,84.19061348,141.56,141.42,12.11739029]
[1741324445247,78.22921348,141.55,141.51,12.11739029]
[1741324446055,0.04457756,141.54,141.52,0.05360375]
[1741324449553,7.10957756,141.54,141.52,0.05360375]
[1741324450352,0.04457756,141.54,141.52,0.05360375]
[1741324450546,7.0654,141.53,141.52,0.05360375]
[1741324450954,0.04457756,141.54,141.52,0.05360375]
[1741324451152,12.11739029,141.62,141.53,12.11739029]
[1741324451455,12.11739029,141.62,141.56,12.11739029]
[1741324451658,12.11739029,141.6,141.54,12.11739029]
[1741324452160,7.064,141.56,141.54,12.11739029]
[1741324452347,1.22944304,141.65,141.54,12.11739029]
[1741324452348,0.04830638,141.58,141.54,12.16405905]
[1741324452548,12.11739029,141.66,141.57,19.18069029]
[1741324452860,12.11739029,141.66,141.6,12.11739029]
[1741324453158,7.061,141.62,141.6,12.11739029]
[1741324453554,7.11209807,141.62,141.6,12.16651199]
[1741324453746,7.0615,141.61,141.6,0.0491217]
[1741324454350,7.11219807,141.62,141.6,0.0491217]
[1741324454760,0.05109807,141.62,141.6,0.0491217]
[1741324455561,7.0615,141.61,141.6,0.0491217]
[1741324460860,0.05109807,141.62,141.54,47.27315473]
[1741324461162,26.42,141.61,141.52,18.84945473]
[1741324461355,45.26945473,141.61,141.52,25.91525473]
[1741324461552,26.42,141.61,141.54,18.84945473]
[1741324462063,7.11078187,141.59,141.56,0.05416123]
[1741324462856,0.04778187,141.59,141.56,0.05416123]
[1741324463057,7.063,141.58,141.56,0.05416123]
[1741324464162,7.0635,141.57,141.56,0.05416123]
[1741324465063,7.0631,141.58,141.56,0.05416123]
[1741324465755,7.0635,141.57,141.56,0.05416123]
[1741324467464,0.04778187,141.59,141.56,0.05416123]
[1741324467665,7.0631,141.58,141.56,0.05416123]
[1741324468466,0.04778187,141.59,141.56,0.05416123]
[1741324469063,7.063,141.58,141.56,0.05416123]
[1741324470160,7.0635,141.57,141.56,0.05416123]
[1741324472063,7.0635,141.57,141.56,6.123e-05]
[1741324472268,33.4435,141.57,141.56,6.123e-05]
[1741324473570,7.0635,141.57,141.56,6.123e-05]
[1741324504693,7.0632,141.58,141.56,6.123e-05]
[1741324504895,0.04778187,141.59,141.56,6.123e-05]
[1741324505097,0.04778187,141.59,141.57,12.07267776]
[1741324505495,0.04778187,141.59,141.57,14.11487776]
[1741324506294,0.04778187,141.59,141.57,21.17787776]
[1741324507901,0.04778187,141.59,141.58,7.063]
[1741324509195,38.19267776,141.65,141.59,7.0621]
[1741324509394,38.19267776,141.65,141.59,19.13477776]
[1741324509594,12.07267776,141.65,141.59,19.13477776]
[1741324509806,7.0608,141.63,141.61,12.07267776]
[1741324510405,7.11519828,141.63,141.61,12.12674406]
[1741324510906,7.061,141.62,141.61,0.0540663]
[1741324512502,7.061,141.62,141.61,6.63e-05]
[1741324518920,19.13367776,141.62,141.61,6.63e-05]
[1741324519715,21.12187776,141.62,141.61,6.63e-05]
[1741324520109,19.13367776,141.62,141.61,6.63e-05]
[1741324533523,7.061,141.62,141.61,6.63e-05]
[1741324534912,7.11509828,141.63,141.61,6.63e-05]
[1741324535526,7.061,141.62,141.61,6.63e-05]
[1741324554242,0.05439828,141.63,141.61,6.63e-05]
[1741324554642,0.05439828,141.63,141.61,26.1200663]
[1741324555443,0.05439828,141.63,141.61,33.1812663]
[1741324556941,7.0581,141.68,141.62,12.07267776]
[1741324557146,12.07267776,141.69,141.64,12.07267776]
[1741324557643,19.13047776,141.69,141.65,7.0592]
[1741324557841,12.07267776,141.69,141.64,12.07267776]
[1741324558047,12.07267776,141.69,141.63,1.9939]
[1741324558254,7.059,141.66,141.65,0.04909202]
[1741324561559,7.059,141.66,141.65,9.202e-05]
[1741324561953,7.0625,141.59,141.58,11.78194836]
[1741324562659,7.0625,141.59,141.58,9.81434836]
[1741324562860,7.063,141.58,141.57,9.81434836]
[1741324563057,7.063,141.58,141.57,9.86181315]
[1741324564257,7.10865499,141.59,141.57,9.86181315]
[1741324564562,0.04605499,141.59,141.57,9.86181315]
[1741324564763,7.063,141.58,141.57,9.86181315]
[1741324565156,7.063,141.58,141.57,0.04746479]
[1741324566157,7.10865499,141.59,141.57,0.04746479]
[1741324566358,0.04605499,141.59,141.57,12.12014255]
[1741324566668,0.04605499,141.59,141.58,7.063]
[1741324566864,38.17267776,141.65,141.57,12.12014255]
[1741324567066,38.17267776,141.65,141.59,12.07267776]
[1741324567269,12.07267776,141.67,141.61,12.07267776]
[1741324567866,7.059,141.66,141.62,7.0606]
[1741324568159,0.05187972,141.65,141.63,0.05309742]
[1741324568960,0.05187972,141.65,141.63,7.11349742]
[1741324569367,0.05187972,141.65,141.63,0.05309742]
[1741324569765,0.05187972,141.65,141.64,7.06]
[1741324570672,78.22921348,141.72,141.63,20.89528771]
[1741324570865,78.22921348,141.72,141.65,18.84049029]
[1741324571062,87.54509761,141.73,141.66,28.1344]
[1741324571464,18.84049029,141.71,141.63,28.1017]
[1741324571671,44.99093814,141.71,141.68,0.05274173]
[1741324572161,7.0575,141.69,141.68,0.05274173]
[1741324572867,7.057,141.7,141.68,0.05274173]
[1741324573067,0.05044785,141.71,141.68,0.05274173]
[1741324573267,7.0575,141.69,141.68,0.05274173]
[1741324575569,0.05044785,141.71,141.68,0.05274173]
[1741324576974,7.10704785,141.71,141.68,0.05274173]
[1741324577176,0.05044785,141.71,141.68,0.05274173]
[1741324577876,7.057,141.7,141.68,0.05274173]
[1741324578070,0.05044785,141.71,141.68,0.05274173]
[1741324578578,7.0575,141.69,141.68,0.05274173]
[1741324580873,7.0575,141.69,141.68,4.173e-05]
[1741324581776,9.0419,141.69,141.68,4.173e-05]
[1741324586774,7.0575,141.69,141.68,4.173e-05]
[1741324590983,12.05222437,141.7,141.6,13.97442437]
[1741324591185,12.05222437,141.65,141.6,13.97442437]
[1741324591386,26.1,141.66,141.6,12.05222437]
[1741324591582,12.05222437,141.65,141.6,12.05222437]
[1741324591892,7.0615,141.61,141.6,12.05222437]
[1741324592683,7.0615,141.61,141.59,0.04605194]
[1741324592887,7.062,141.6,141.59,0.04605194]
[1741324593091,12.05222437,141.63,141.59,0.04605194]
[1741324593289,0.04808509,141.61,141.59,7.10845194]
[1741324593485,0.04808509,141.61,141.59,19.16067631]
[1741324593687,0.04808509,141.61,141.59,12.09827631]
[1741324593983,0.04808509,141.61,141.6,7.062]
[1741324594380,0.04808509,141.61,141.59,19.16057631]
[1741324595284,0.04808509,141.61,141.59,12.09827631]
[1741324595484,0.04808509,141.61,141.59,0.04605194]
[1741324595782,7.062,141.6,141.59,0.04605194]
[1741324600090,7.0641,141.56,141.53,12.05222437]
[1741324601091,7.11148567,141.56,141.53,12.10170202]
[1741324602493,7.11148567,141.56,141.53,0.04947765]
[1741324602890,0.04738567,141.56,141.53,0.04947765]
[1741324603893,7.11148567,141.56,141.53,0.04947765]
[1741324604096,0.04738567,141.56,141.53,0.04947765]
[1741324605396,0.04738567,141.56,141.54,7.0646]
[1741324605798,0.04738567,141.56,141.53,18.91044633]
[1741324605990,7.0616,141.61,141.55,18.86096868]
[1741324606590,7.0616,141.61,141.57,7.0632]
[1741324607294,0.05092811,141.6,141.58,0.04920374]
[1741324607494,0.05092811,141.6,141.58,7.11200374]
[1741324607700,0.05092811,141.6,141.58,0.04920374]
[1741324608197,0.05092811,141.6,141.58,7.11200374]
[1741324611299,0.05092811,141.6,141.58,0.04920374]
[1741324612203,7.0625,141.59,141.58,0.04920374]
[1741324614405,7.11302811,141.6,141.58,0.04920374]
[1741324614601,0.05092811,141.6,141.58,0.04920374]
[1741324615405,7.0625,141.59,141.58,0.04920374]
[1741324617906,0.05092811,141.6,141.58,0.04920374]
[1741324618406,0.05092811,141.6,141.59,7.0625]
[1741324618904,0.05092811,141.6,141.58,7.11200374]
[1741324620108,0.05092811,141.6,141.58,0.04920374]
[1741324620501,7.0625,141.59,141.58,0.04920374]
[1741324631313,7.0645,141.55,141.53,38.16837779]
[1741324632415,7.1113221,141.55,141.53,38.21335513]
[1741324633421,0.0468221,141.55,141.53,0.04497734]
[1741324633611,7.0649,141.54,141.53,0.04497734]
[1741324634409,26.1468221,141.55,141.49,39.25739346]
[1741324634611,26.1468221,141.55,141.5,12.06837779]
[1741324634812,0.0468221,141.55,141.5,12.06837779]
[1741324635013,0.0468221,141.55,141.52,7.0659]
[1741324635312,0.0468221,141.55,141.52,19.13427779]
[1741324635714,0.0468221,141.55,141.53,7.0653]
[1741324635915,0.0468221,141.55,141.54,12.06837779]
[1741324636410,0.0468221,141.55,141.52,5.82248258]
[1741324636614,0.0468221,141.55,141.53,7.0651]
[1741324636816,0.0468221,141.55,141.54,12.06837779]
[1741324637618,0.0468221,141.55,141.54,19.13327779]
[1741324637812,19.13067779,141.6,141.54,12.06837779]
[1741324638721,7.0625,141.59,141.55,7.064]
[1741324639021,0.04757651,141.58,141.57,7.0634]
[1741324641509,7.0601,141.64,141.6,12.06837779]
[1741324642106,12.06837779,141.66,141.6,12.06837779]
[1741324642322,7.0605,141.63,141.6,12.06837779]
[1741324642506,7.0605,141.63,141.62,0.0517022]
[1741324643521,0.05241757,141.64,141.62,0.0517022]
[1741324643714,12.06837779,141.69,141.62,12.12007999]
[1741324643918,15.02653002,141.71,141.62,12.12007999]
[1741324643919,12.06837779,141.7,141.62,12.06837779]
[1741324644122,12.06837779,141.7,141.63,26.1]
[1741324645114,0.04729488,141.68,141.65,0.04690225]
[1741324646924,7.059,141.66,141.65,0.04690225]
[1741324647115,26.12729488,141.68,141.65,0.04690225]
[1741324647521,0.04729488,141.68,141.65,0.04690225]
[1741324648414,7.10539488,141.68,141.65,0.04690225]
[1741324648617,0.04729488,141.68,141.65,0.04690225]
[1741324649221,7.059,141.66,141.65,0.04690225]
[1741324650813,0.04729488,141.68,141.65,0.04690225]
[1741324651019,3.9554,141.75,141.65,44.96040875]
[1741324651220,3.9554,141.75,141.65,44.9135065]
[1741324651423,7.0556,141.73,141.67,7.0585]
[1741324651723,30.0354,141.75,141.66,3.9251]
[1741324651928,7.0567,141.71,141.66,10.9839]
[1741324652121,7.0567,141.71,141.69,0.04939161]
[1741324652323,0.05005728,141.72,141.69,0.04939161]
[1741324652518,7.10625728,141.72,141.69,0.04939161]
[1741324653319,7.057,141.7,141.69,0.04939161]